Cogmind - Beta 15 @@@ ROGUE MODE // 2025.05.31 @ 19:44:16 Player: laeb2 Result: Destroyed by D-53 Grenadier with Mini Grenade Launcher Performance ------------- Evolutions (0) 0 Regions Visited (3) 600 Robots Destroyed (23) 115 Value Destroyed (261) 261 Prototype IDs (3) 60 Alien Tech Used (0) 0 Bonus (0) 0 TOTAL SCORE: 1036 Bonus ------- None Cogmind --------- Core Integrity 0/250 Matter 249/300 Energy 100/100 System Corruption 12% Temperature Warm (123) Movement Rolling (95) Ox1 Location -7/Recycling Parts ------- > --- POWER (1) -------- (None) > --- PROPULSION (2) --- Light Treads Wheel > --- UTILITY (2) ------ Small Storage Unit Improved Terrain Scanner > --- WEAPON (2) ------- Heavy Laser Heavy Laser > --- INVENTORY (8) ---- Improved Deuterium Engine Improved Deuterium Engine Wheel Wheel Wheel Tractor Beam Heavy Laser Mining Laser Peak State ------------ > --- POWER ------------ Improved Deuterium Engine > --- PROPULSION ------- Light Treads Wheel > --- UTILITY ---------- Small Storage Unit Improved Terrain Scanner > --- WEAPON ----------- Heavy Laser Heavy Laser > --- INVENTORY -------- Improved Deuterium Engine Improved Deuterium Engine Wheel Wheel Wheel Tractor Beam Mining Laser [Rating: 19] Favorites ----------- Power Light Ion Engine Engine Light Ion Engine Propulsion Wheel Treads Light Treads Wheel Wheel Utility Small Storage Unit Device Improved Terrain Scanner Storage Small Storage Unit Weapon Medium Laser Energy Gun Medium Laser Special Weapon Mining Laser Build | -11 -10 -10 -7 ------- Run | Yrd Mat Sub Rec Slots Evolved . | . . . . Power . | . . . . Propulsion . | . . . . Utility . | . . . . Weapon . | . . . . Parts Attached 22 | 12 2 4 4 Power 5 | 2 . 2 1 Engine 5 | 2 . 2 1 Core . | . . . . Reactor . | . . . . Propulsion 7 | 4 1 1 1 Treads 1 | . . 1 . Leg . | . . . . Wheel 6 | 4 1 . 1 Hover . | . . . . Flight . | . . . . Utility 3 | 3 . . . Device 2 | 2 . . . Storage 1 | 1 . . . Processor . | . . . . Hackware . | . . . . Protection . | . . . . Artifact . | . . . . Weapon 7 | 3 1 1 2 Energy Gun 6 | 2 1 1 2 Energy Cannon . | . . . . Ballistic Gun . | . . . . Ballistic Cannon . | . . . . Launcher . | . . . . Special Weapon 1 | 1 . . . Impact Weapon . | . . . . Slashing Weapon . | . . . . Piercing Weapon . | . . . . Special Melee Weapon . | . . . . Unidentified Prototypes . | . . . . Parts Lost 10 | 4 . 5 1 Power 4 | 1 . 2 1 Propulsion 4 | 2 . 2 . Utility 1 | 1 . . . Weapon 1 | . . 1 . Highest Loss Streak 4 | 4 . 3 1 To Critical Strikes . | . . . . Average Backups 7 | 7 8 7 7 Power 1 | 1 1 . 1 Propulsion 2 | 2 4 3 3 Utility 1 | 1 1 1 1 Weapon 1 | 1 2 1 1 Tool/Special . | . . . . Unused Backups 10 | 2 . . 8 Power 3 | . . . 3 Propulsion 5 | 2 . . 3 Utility 1 | . . . 1 Weapon 1 | . . . 1 Tool/Special . | . . . . Average Slot Usage (%) 92 | . 100 88 90 Engine 13 | . 14 10 14 Treads 8 | . . 3 14 Wheel 13 | . 28 18 5 Device 14 | . 14 14 14 Storage 14 | . 14 14 14 Energy Gun 27 | . 28 27 28 Peak Build Rating 19 | 9 10 10 19 Average Rating 9 | 8 9 9 14 On Entrance 7 | . 9 10 10 Naked Turns . | . . . . Heaviest Build 24 | 14 16 16 24 Greatest Support 26 | 26 26 26 20 Greatest Overweight (x) 2 | . . 1 2 Average Overweight (x) . | . . . 1 Largest Inventory Capacity 8 | 8 8 8 8 Average Capacity 7 | 7 8 8 8 Most Carried 8 | 8 8 8 8 Average Carried 7 | 7 8 7 7 Final Capacity 8 | 8 8 8 8 Final Carried 8 | 8 8 7 8 Class Distribution -------------------- 98% | Mutant Dominant Class ---------------- Mutant | -10/Materials Mutant | -10/Subcaves Mutant | -7/Recycling Resources | -11 -10 -10 -7 ----------- Run | Yrd Mat Sub Rec Matter Collected 472 | 378 19 75 . Remotely . | . . . . Salvage Created 524 | 326 96 92 10 Parts 36 | 27 4 4 1 Haulers Intercepted . | . . . . Recyclers Shooed . | . . . . Parts Field Recycled . | . . . . Retrieved Matter . | . . . . Parts Self-Destructed 4 | . . 4 . Prevented . | . . . . Kills | -11 -10 -10 -7 ------- Run | Yrd Mat Sub Rec Combat Hostiles Destroyed 6 | . 2 4 . Guns 6 | . 2 4 . Classes Destroyed 6 | 3 1 2 . Worker 4 | 4 . . . Tunneler 10 | 9 . . 1 Recycler 1 | 1 . . . Turret 2 | . . 2 . Swarmer 4 | . . 4 . Grunt 2 | . 2 . . Best Kill Streak 3 | 3 2 3 1 Combat Bots Only 3 | . 2 3 . Max Kills in Single Turn 1 | 1 1 1 1 Gunslinging . | . . . . Exploded . | . . . . Melee . | . . . . Uniques/NPCs Destroyed . | . . . . Combat | -11 -10 -10 -7 -------- Run | Yrd Mat Sub Rec Hostile Shots Fired 116 | . 11 86 19 Missed 39 | . 2 29 8 Hits 77 | . 9 57 11 Projectile 77 | . 9 57 11 AOE 1 | . . . 1 Damage Taken 904 | 270 117 401 116 Core 261 | 69 25 101 66 Absorbed by Shields . | . . . . Core Remaining (%) 72 | 72 . . . Volleys Fired 175 | 142 11 20 2 Largest 2 | 2 2 2 2 Hottest 150 | 150 115 115 138 Shots Fired 239 | 179 20 36 4 Gun 134 | 74 20 36 4 Cannon . | . . . . Launcher . | . . . . Special 105 | 105 . . . Kinetic . | . . . . Thermal 239 | 179 20 36 4 Explosive . | . . . . Electromagnetic . | . . . . Robot Hit Streak 9 | 6 9 8 1 Robot Miss Streak 4 | 3 2 4 3 Penetration Max . | . . . . Secondary Targets 2 | . . 2 . Max Gunslinging Chain 1 | . . 1 . Shots Hit Robots 75 | 37 14 23 1 Core Hits 33 | 15 6 10 2 Critical Kills . | . . . . Critical Parts Destroyed . | . . . . Critical Strikes 4 | 3 1 . . Burn 4 | 3 1 . . Melee Attacks . | . . . . Impact . | . . . . Slashing . | . . . . Piercing . | . . . . Sneak Attacks . | . . . . Combat Hostiles . | . . . . Follow-up Attacks . | . . . . Damage Inflicted 1007 | 442 180 328 57 Guns 1007 | 442 180 328 57 Cannons . | . . . . Explosions . | . . . . Melee . | . . . . Ramming . | . . . . Kinetic . | . . . . Thermal 1007 | 442 180 328 57 Explosive . | . . . . Electromagnetic . | . . . . Impact . | . . . . Slashing . | . . . . Piercing . | . . . . Highest Corruption 12 | 12 12 12 12 Average Corruption 12 | 12 12 12 12 Corruption Purged . | . . . . Corruption Blocked . | . . . . Effects 47 | 19 8 8 12 Message Errors 13 | 5 . 1 7 Matter Fused 10 | 5 1 2 2 Heat Flow Errors 9 | 3 3 2 1 Energy Discharges 5 | 1 2 1 1 Data Loss (minor) 4 | 2 . 1 1 Misfires 2 | 2 . . . Alerts 1 | 1 . . . Weapon Failures 3 | . 2 1 . Overload Shots . | . . . . Overflow Damage . | . . . . Projectiles . | . . . . Explosions . | . . . . Melee . | . . . . Knockbacks . | . . . . Impact . | . . . . Kinetic . | . . . . Secondary . | . . . . Self-Inflicted Damage . | . . . . Shots . | . . . . Rammed . | . . . . Targets Rammed . | . . . . Kicked . | . . . . Crushed . | . . . . Highest Temperature 291 | 291 239 251 147 Average Temperature 74 | 74 80 61 78 Received Heat Transfer 291 | . 69 204 18 Effects 1 | 1 . . . Interference 1 | 1 . . . Siege Activations . | . . . . Martial Activations . | . . . . Shielding Activations . | . . . . Robots Disrupted . | . . . . Combat Hostiles . | . . . . Robots Corrupted . | . . . . Combat Hostiles . | . . . . Parts Fried . | . . . . Impact Corruptions . | . . . . Robots Melted . | . . . . Combat Hostiles . | . . . . Parts Melted 4 | 4 . . . Heat Transferred 2894 | 1411 545 864 74 Parts Sabotaged . | . . . . Parts Stolen . | . . . . Parts Stripped . | . . . . Power Chain Reactions . | . . . . Alert | -11 -10 -10 -7 ------- Run | Yrd Mat Sub Rec Maximum Alert Level . | . . . . Low Security (%) 100 | 100 100 . 100 Level 1 . | . . . . Level 2 . | . . . . Level 3 . | . . . . Level 4 . | . . . . Level 5 . | . . . . High Security . | . . . . Max Security . | . . . . Peak Influence 52 | 10 50 . 52 Initial 52 | . . . 52 Average 3 | . 19 . 11 Influence Increases 390 | 70 76 225 19 Destroy 0b10 Robot/C 160 | . 40 120 . Destroy 0b10 Robot/NC 75 | 70 . . 5 Destroy Leader 10 | . 10 . . Successful Hack 25 | . 11 . 14 Partial Spotted 15 | . 15 . . Lose Combat Pursuer 105 | . . 105 . Influence Decreases 390 | 70 46 145 129 Entered New Map 73 | . . 15 58 Time Decay 262 | 70 46 80 66 Lost Part 55 | . . 50 5 Squads Dispatched 1 | . 1 . . Investigation . | . . . . Extermination . | . . . . Reinforcement 1 | . 1 . . Assault . | . . . . Garrison . | . . . . Intercept . | . . . . Searches Triggered . | . . . . Construction Impeded . | . . . . Haulers Reinforced . | . . . . Active Scanning Responses . | . . . . Cargo Convoy Interrupts . | . . . . Stealth | -11 -10 -10 -7 --------- Run | Yrd Mat Sub Rec Distress Signals 1 | . 1 . . Communications Jammed . | . . . . Distress Signals . | . . . . Times Spotted 18 | . 6 10 2 Peak Tracking Total 6 | . 4 6 3 Tactical Retreats 4 | . . 4 . Traps | -11 -10 -10 -7 ------- Run | Yrd Mat Sub Rec Traps Triggered . | . . . . Indirectly . | . . . . Trap Hack Attempts . | . . . . Triggered . | . . . . Disarmed . | . . . . Reprogrammed . | . . . . Reused . | . . . . Traps Extracted . | . . . . Installed . | . . . . Triggered . | . . . . Machines | -11 -10 -10 -7 ---------- Run | Yrd Mat Sub Rec Machines Disabled 1 | . . 1 . Max in Single Turn 1 | . . 1 . Machines Repaired . | . . . . Machines Dismantled . | . . . . Machines Sabotaged . | . . . . Overloaded Fab Kills . | . . . . Hacking | -11 -10 -10 -7 --------- Run | Yrd Mat Sub Rec Machines Accessed 8 | . 2 . 6 Terminals 7 | . 2 . 5 Fabricators . | . . . . Repair Stations . | . . . . Recycling Units 1 | . . . 1 Scanalyzers . | . . . . Garrison Access . | . . . . Total Hacks 12 | . 5 . 7 Successful 6 | . 3 . 3 Failed 6 | . 2 . 4 Catastrophic 4 | . . . 4 Database Lockouts . | . . . . Manual 3 | . 3 . . Terminals 10 | . 5 . 5 Fabricators . | . . . . Repair Stations . | . . . . Recycling Units 2 | . . . 2 Scanalyzers . | . . . . Garrison Access . | . . . . Terminal Hacks 2 | . 1 . 1 Prototype ID Bank 1 | . . . 1 Alert Level 1 | . 1 . . Fabricator Hacks . | . . . . Repair Station Hacks . | . . . . Recycling Unit Hacks 2 | . . . 2 Report Inventory 2 | . . . 2 Scanalyzer . | . . . . Garrison Access Hacks . | . . . . Unauthorized Hacks 2 | . 2 . . Terminals 2 | . 2 . . Botnet 1 | . 1 . . Operators 1 | . 1 . . Fabricators . | . . . . Repair Stations . | . . . . Recycling Units . | . . . . Scanalyzers . | . . . . Garrison Access . | . . . . Data Cores Recovered . | . . . . Used . | . . . . Hacking Detections 8 | . 2 . 6 Full Trace Events . | . . . . Feedback Events . | . . . . Feedback Blocked . | . . . . Robot Schematics Acquired . | . . . . Robots Built . | . . . . Authchips . | . . . . Time . | . . . . Total Robot Build Rating . | . . . . Part Schematics Acquired . | . . . . Parts Built . | . . . . Authchips . | . . . . Time . | . . . . Total Part Build Rating . | . . . . Parts Repaired . | . . . . Time . | . . . . Parts Recycled . | . . . . Recycled Matter . | . . . . Retrieved Matter . | . . . . Retrieved Components . | . . . . Parts Scanalyzed . | . . . . Part Schematics Acquired . | . . . . Parts Damaged . | . . . . Bothacking | -11 -10 -10 -7 ------------ Run | Yrd Mat Sub Rec Used RIF Installer . | . . . . Robots Hacked . | . . . . Non-combat . | . . . . Combat . | . . . . Robot Hacks Applied . | . . . . Relay Couplers Released . | . . . . Fabnet Peak Effective % . | . . . . Robots Rewired . | . . . . Allies Hacked . | . . . . Hacks Repelled . | . . . . Allies | -11 -10 -10 -7 -------- Run | Yrd Mat Sub Rec Total Allies . | . . . . Largest Group . | . . . . Highest-Rated Group . | . . . . Highest-Rated Ally . | . . . . Total Orders . | . . . . Ally Attacks . | . . . . Total Damage . | . . . . Kills . | . . . . Allies Corrupted . | . . . . Allies Melted . | . . . . Intel | -11 -10 -10 -7 ------- Run | Yrd Mat Sub Rec Active Infowar (turns) 2021 | 1420 123 167 311 Terrain 1855 | 1254 123 167 311 Seismic 166 | 166 . . . Robot Analysis Total . | . . . . Derelict Logs Recovered . | . . . . Drone Launches . | . . . . Drone Recoveries . | . . . . Exploration | -11 -10 -10 -7 ------------- Run | Yrd Mat Sub Rec Turns Passed 2268 | 1667 123 167 311 Spaces Moved 942 | 608 58 57 219 Core 14 | 14 . . . Treads 127 | . . 19 108 Legs . | . . . . Wheels 801 | 594 58 38 111 Hover . | . . . . Flight . | . . . . Fastest Speed 50 | 50 90 90 110 Average Speed 98 | 84 90 115 134 Slowest Speed 160 | 100 90 160 160 Overloaded Moves . | . . . . Propulsion Burnouts . | . . . . Robots Hopped . | . . . . Potential Cave-ins 2 | 2 . . . Cave-ins Triggered 1 | 1 . . . Exploration Rate (%) 22 | 15 15 5 53 Regions Visited 3 Branch Regions 2 Pre-discovered Areas . | . . . . Known Exits Taken . | . . . . Unknown Exits Taken 3 | 1 1 1 . Scrap Searched . | . . . . Spaces Dug 12 | 12 . . . Terrain Destroyed 21 | 21 . . . Melee . | . . . . Projectile 21 | 21 . . . AOE . | . . . . Terrain Rammed . | . . . . Walls Destroyed . | . . . . Machines Disabled . | . . . . Actions | -11 -10 -10 -7 --------- Run | Yrd Mat Sub Rec Total 1833 | 1371 107 122 233 Wait 658 | 585 33 39 1 Move 938 | 606 57 56 219 Hop . | . . . . Pick Up 22 | 16 . 3 3 Fast Attach 10 | 6 1 . 3 Attach 10 | 5 . 4 1 Detach . | . . . . Swap 8 | 6 2 . . Drop 11 | 4 3 . 4 Fire 175 | 142 11 20 2 Melee . | . . . . Ram . | . . . . Kick . | . . . . Crush . | . . . . Escape Stasis 1 | 1 . . . Rewire . | . . . . Trap . | . . . . Miscellaneous . | . . . . Route ------- -11/Scrapyard -10/Materials (discovered 2 exits: [*Min] / [*Sub]) -10/Subcaves (discovered 2 exits: [*Mat] / *Rec) -7/Recycling History --------- Turn | Location | Event 5 | -11/Scrapyard | Discovered new exit (range 15) 1213 | -11/Scrapyard | Crushed by falling debris 1214 | -11/Scrapyard | System corruption reached 10% 1244 | -11/Scrapyard | Lost 4 parts (1p2n1u) 1668 | -11/Scrapyard | Entered Materials 1686 | -10/Materials | Build established: Mutant 1783 | -10/Materials | Discovered new exit (range 8) 1787 | -10/Materials | Discovered new exit (range 5) 1791 | -10/Materials | Entered Subcaves 1792 | -10/Subcaves | Approached by a straggling Scientist 1826 | -10/Subcaves | Discovered new exit (range 5) 1843 | -10/Subcaves | Core integrity fell below 50% 1892 | -10/Subcaves | Discovered new exit (range 10) 1949 | -10/Subcaves | Lost 3 parts (1p1n1w) 1958 | -10/Subcaves | Entered Recycling 2269 | -7/Recycling | Core integrity fell below 20% 2269 | -7/Recycling | Destroyed by D-53 Grenadier with Mini Grenade Launcher Last Messages --------------- 02116_ Acquired Imp. Deuterium Engine. 02121_ R-06 Scavenger collects Lgt. Ion Engine. 02123_ R-06 Scavenger collects Sub. Power Source. 02134_ >AJGMRP7AOKBGXNVHIDP6SYDJ5DMYC 02134_ Dropped Sml. Laser. 02135_ Dropped Particle Gun. 02135_ Acquired Hvy. Laser. 02137_ R-06 Scavenger collects Sml. Laser. 02137_ R-06 Scavenger collects Particle Gun. 02138_ Acquired Hvy. Laser. 02166_ X1 30ENY>L XN#U T4GZ, 9FF 02190_ RYY/IWWN:DR %10VHOL 02207_ E&O#Z5X4I=H3IYZFMJR|P6 9QYK# 02233_ Connecting with Terminal... 02248_ System corrupted: Matter fused (-6). 02264_ System corrupted: Component data lost. 02265_ T-07 Excavator destroyed. 02265_ Y-54 Guardian springs to life. 02268_ Imp. Deuterium Engine destroyed. Map ----- +----------------------------------------------------+ | ?????????????????????????????????????????????????? | | ??? ?????????????????????????????????????????????? | | ?????????????????????????????????????????????????? | | ????????????????????????????????????????????????? | | ?????????????????????????????????????????????????? | | ?????????????????????????????????????????????????? | | ?????????????????????????????????????????????????? | | ??????#??#?#?#####???????????????????????????????? | | ????????????## #???????????????????????????????? | | ############## #????????????#??????????????????? | | # # #?????#???????##????????????????? | | # """"" """ # #???########## ###??????????????? | | # ""T"" """ # #???# #??????????????? | | # """ # #???# ##?????????????? | | # # ##??# #??????????????? | | # """ """ # #???# #??????????????? | | # """ """ + #???# #??????????????? | | # """ """ # #???# +??????????????? | | # # #?#?# #??????????????? | | # # ###?# #??????????????? | | # # ""#?# #??????????????? | | # # Y"#?# #??????????????? | | ############## ""#?# #??????????????? | | #??# #?????# ###?# #??????????????? | | #### [####### #####+##/########???????????????? | | r r r @ #?????????? | | ########d########???????????????? | | #?????## ??????????????????????? | | ##########+#######?# ?? ???????????????????? | | ##??# #?# !!?????????????????????? | | ##??# ### ]?????????????????????? | | #???# #?# =% ????????????????????? | | ###?# #?# % ???????????????????? | | #?# """"" #?#% i ???????????????????? | | *#?# """"" #?? ???????????????????? | | **#?# """"" #??Y! %!??????????????????? | | ##### """"" #?? ??????????????????? | | + """"" #?? Y ?????????????????? | | Y"######## """"" #??#######?????????????????? | | ""##??#??# """"" #??????????????????????????? | | ###??????# #??????????????????????????? | | ?#?#?????##############??????????????????????????? | | ???????????#??????#??????????????????????????????? | | ?????????????????????????????????????????????????? | | | | | | | | | | | | | +----------------------------------------------------+ Best States ------------- Heat Dissipation 25 Energy Generation 16 Energy Capacity 290 Matter Stores 300 Matter Capacity 300 Sight Range 16 Terrain Scan Range 16 Terrain Scan Density 10 Evasion (%) 50 Recoil Reduction 1 Item Schematics ----------------- None Robot Schematics ------------------ None Fabricated ------------ Nothing Repaired ---------- Nothing Alien Tech Used ----------------- None Achievements -------------- None Challenges ------------ None Game ------ Seed GuidedCargoProcessor Manual? 0 Play Time 00:13:43 Cumulative 97.4 hours Start 2025.05.31 @ 19:32:36 End 2025.05.31 @ 19:44:16 Sessions 1 Manual Loads 0 Difficulty Rogue Special Mode None Game No. 118 Rogue 118 Adventurer 0 Explorer 0 Win Type - Total 2 Types 2/0/0/0/0/0/0/0/0/0 Lore% 64 Gallery% 55 Achievement% 53 Wizard Run 0 Options --------- Layout 2 ASCII 0 Keyboard 0 Movement Mouse Keybinds 0 Fullscreen 1 Font 32/SmallcapsGlow Map View 50x44 Zoom Use 0% Tactical HUD 1 Map Filters NONE Filters NONE Steam 1 RUN: 03cb60df-ed8f-43ab-bb49-28444ea8ae4a